{"text_format":"3","workbook":"xlsx","n_sheets":1,"sheets":["Incidences du prix sur la marge"],"not_rendered":{"defined_names":21},"read":"whole","date_system":"1900"}

{"sheet":"Incidences du prix sur la marge","index":0,"n_rows":15,"n_cols":13,"rows_kept":15,"merged":[[1,1,1,2],[1,4,1,5],[1,9,1,10]]}
[]
[null,"Incidence de la variation des prix de vente \net des prix d'achat sur le taux de marge",null,null,"Quelle augmentation tarifaire appliquer pour obtenir un taux de marge à partir d'un taux d'évolution des prix d'achat connu",null,null,"Vérification",null,"Evolution maximum des prix d'achat pour obtenir un taux de marge à partir d'un taux d'évolution des prix de vente prévu",null,null,"Vérification"]
[null,{"$f":"IF(ISBLANK(C3),\"Taux de marge actuel ?\",\"Taux de marge actuel\")","v":"Taux de marge actuel ?"},null,null,{"$f":"IF(ISBLANK(F3),\"Taux de marge actuel ?\",\"Taux de marge actuel\")","v":"Taux de marge actuel ?"},null,null,{"$f":"IF(OR(ISBLANK(F3),ISBLANK(F6)),\" \",F3)","v":" "},null,"Taux de marge actuel ?",null,null,{"$f":"IF(OR(ISBLANK(K3),ISBLANK(K6)),\" \",K3)","v":" "}]
[null,{"$f":"IF(ISBLANK(C4),\"Taux d'évolution du prix de vente ?\",\"Taux d'évolution du prix de vente\")","v":"Taux d'évolution du prix de vente ?"},null,null,{"$f":"IF(ISBLANK(F4),\"Taux de marge souhaité ? \",\"Taux de marge souhaité\")","v":"Taux de marge souhaité ? "},null,null,{"$f":"IF(ISERROR(IF(OR(ISBLANK(F4),ISBLANK(F6)),\" \",H3+H5)),\" \",IF(OR(ISBLANK(F4),ISBLANK(F6)),\" \",H3+H5))","v":" "},null,{"$f":"IF(ISBLANK(K4),\"Taux de marge souhaité ?\",\"Taux de marge souhaité ?\")","v":"Taux de marge souhaité ?"},null,null,{"$f":"IF(OR(ISBLANK(K4),ISBLANK(K6)),\" \",M3+M5)","v":" "}]
[null,{"$f":"IF(ISBLANK(C5),\"Taux d'évolution du prix d'achat ?\",\"Taux d'évolution du prix d'achat\")","v":"Taux d'évolution du prix d'achat ?"},null,null,"= Variation du taux de marge",{"$f":"IF(ISBLANK(F4),\" \",F4-F3)","v":" "},null,{"$f":"IF(ISERROR(IF(OR(ISBLANK(F4),ISBLANK(F6)),\" \",((H7-H6)*(1-H3))/(1+H7))),\" \",IF(OR(ISBLANK(F4),ISBLANK(F6)),\" \",((H7-H6)*(1-H3))/(1+H7)))","v":" "},null,"= Variation du taux de marge",{"$f":"IF(ISBLANK(K4),\" \",K4-K3)","v":" "},null,{"$f":"IF(OR(ISBLANK(K4),ISBLANK(K6)),\" \",((M6-M7)*(1-M3))/(1+M6))","v":" "}]
[null,"= Variation du taux de marge",{"$f":"((C4-C5)*(1-C3))/(1+C4)","v":{"v":0,"d":"0.00%"}},null,{"$f":"IF(ISBLANK(F6),\"Taux d'évolution prévisible du prix d'achat ?\",\"Taux d'évolution prévisible du prix d'achat\")","v":"Taux d'évolution prévisible du prix d'achat ?"},null,null,{"$f":"IF(ISBLANK(F6),\" \",F6)","v":" "},null,{"$f":"IF(ISBLANK(K6),\"Taux d'évolution du prix de vente prévu ?\",\"Taux d'évolution du prix de vente prévu\")","v":"Taux d'évolution du prix de vente prévu ?"},null,null,{"$f":"IF(ISBLANK(K6),\" \",K6)","v":" "}]
[null,"= Nouveau taux de marge ",{"$f":"C3+C6","v":{"v":0,"d":"0.00%"}},null,"= Taux d'évolution du prix de vente nécessaire",{"$f":"IF(ISERROR(IF(ISBLANK(F6),\" \",((((1-F3)*F6))+F5)/((1-F4)))),\" \",IF(ISBLANK(F6),\" \",((((1-F3)*F6))+F5)/((1-F4))))","v":" "},null,{"$f":"F7","v":" "},null,"= Taux d'évolution du prix d'achat à obtenir",{"$f":"IF(ISBLANK(K6),\" \",((K5*(1+K6))-((1-K3)*K6))/((1-K3)/-1))","v":" "},null,{"$f":"K7","v":" "}]
[]
[null,{"$f":"IF(ISBLANK(C9),\"Chiffre d'affaires prévu ?\",\"Chiffre d'affaires prévu\")","v":"Chiffre d'affaires prévu ?"}]
[]
[null,{"$f":"IF(C11>0,\"= Gain de marge\",IF(C11<0,\"= Perte de marge\",\" \"))","v":" "},{"$f":"C9*C6","v":{"v":0,"d":"0 € "}}]
[]
[null,{"$f":"IF(C11>=0,\" \",\"Chiffre d'affaires complémentaire à réaliser \npour compenser la perte de marge\")","v":" "},{"$f":"IF(C11>=0,0,(C11/C7)/-1)","v":{"v":0,"d":"0 € "}}]
[]
[null,{"$f":"IF(C15=0,\" \",\"Chiffre d'affaires total à réaliser\")","v":" "},{"$f":"IF(C13>0,C9+C13,0)","v":{"v":0,"d":"0 € "}}]